bitfinex/quotes_SOLUSD_20220207
["timestamp","ask_amount","ask_price","bid_price","bid_amount"]
[1644258726230,56.49651266,120.35,120.26,12.472]
[1644258726429,1.16923503,120.34,120.25,4.155]
[1644258726630,7.16923503,120.34,120.25,4.155]
[1644258726845,7.41923503,120.34,120.25,4.155]
[1644258727145,42.96776344,120.33,120.26,37.57078537]
[1644258727346,12.4746,120.32,120.26,37.57078537]
[1644258727557,6.0,120.32,120.26,37.57078537]
[1644258727745,6.25,120.32,120.26,0.25]
[1644258727946,6.25,120.32,120.25,4.405]
[1644258728147,6.25,120.32,120.25,0.25]
[1644258728347,0.25,120.32,120.24,47.9458]
[1644258728546,6.28542101,120.32,120.24,47.9458]
[1644258728846,6.28542101,120.32,120.24,83.33426356]
[1644258729045,42.03637163,120.31,120.24,83.08426356]
[1644258729247,42.28637163,120.31,120.24,83.08426356]
[1644258729446,48.03637163,120.31,120.24,83.08426356]
[1644258729645,6.0,120.31,120.24,83.08426356]
[1644258729847,6.25,120.31,120.24,95.55766356]
[1644258730547,6.25,120.31,120.24,95.80766356]
[1644258730749,64.04019814,120.32,120.24,95.80766356]
[1644258730948,44.94721016,120.3,120.24,60.4192]
[1644258731350,45.19721016,120.3,120.24,47.9458]
[1644258731549,0.25,120.3,120.24,47.9458]
[1644258732452,30.11545604,120.33,120.24,47.9458]
[1644258732656,35.39035162,120.32,120.24,79.23104824]
[1644258732951,12.4743,120.31,120.24,91.70504824]
[1644258733151,18.4743,120.31,120.24,91.70504824]
[1644258733552,18.7243,120.31,120.24,91.70504824]
[1644258733951,18.4743,120.31,120.24,91.70504824]
[1644258734558,6.0,120.31,120.24,91.70504824]
[1644258734758,6.0,120.32,120.24,97.70504824]
[1644258734958,35.16932101,120.33,120.24,91.70504824]
[1644258735459,35.1339,120.33,120.24,91.70504824]
[1644258735669,35.1339,120.33,120.24,97.70504824]
[1644258735859,12.50662101,120.34,120.24,97.70504824]
[1644258736166,0.03542101,120.33,120.24,99.64563131]
[1644258736359,1.16923503,120.36,120.24,111.63563131]
[1644258736360,0.03542101,120.34,120.24,111.63563131]
[1644258736560,0.03542101,120.35,120.24,111.63563131]
[1644258737062,0.03542101,120.36,120.24,111.63563131]
[1644258737262,0.03542101,120.36,120.25,4.156]
[1644258737461,0.03542101,120.36,120.28,12.4675]
[1644258737662,43.24602257,120.37,120.29,31.28524824]
[1644258737860,0.03542101,120.36,120.29,31.28524824]
[1644258738073,43.24602257,120.37,120.29,0.25]
[1644258738961,56.8835576,120.37,120.3,12.4675]
[1644258739362,49.71432257,120.37,120.3,12.7175]
[1644258740064,55.71432257,120.37,120.3,12.7175]
[1644258740268,55.96432257,120.37,120.3,12.7175]
[1644258740462,57.1335576,120.37,120.3,0.25]
[1644258740764,57.1335576,120.37,120.29,12.4689]
[1644258740765,57.1335576,120.37,120.29,12.7189]
[1644258741568,51.1335576,120.37,120.29,12.7189]
[1644258741767,51.1335576,120.37,120.29,12.4689]
[1644258741968,51.1335576,120.37,120.28,35.5328]
[1644258742171,1.16923503,120.36,120.28,23.063]
[1644258742372,12.4717,120.34,120.28,23.063]
[1644258742772,35.39239566,120.33,120.24,23.4849]
[1644258742970,35.39239566,120.33,120.24,47.9117]
[1644258742971,35.42781667,120.33,120.24,47.9117]
[1644258743173,35.39239566,120.33,120.26,12.4719]
[1644258743976,47.86489566,120.33,120.26,12.4719]
[1644258744176,48.11489566,120.33,120.26,12.4719]
[1644258745278,48.11489566,120.33,120.26,12.7219]
[1644258748281,48.11489566,120.33,120.24,66.3849]
[1644258748482,49.3195517,120.33,120.24,66.3849]
[1644258748683,49.28413069,120.33,120.24,66.3849]
[1644258748884,49.3195517,120.33,120.24,66.3849]
[1644258749082,55.28413069,120.33,120.24,66.3849]
[1644258749284,49.28413069,120.33,120.24,66.3849]
[1644258749683,49.28413069,120.33,120.24,66.6349]
[1644258750088,55.28413069,120.33,120.24,66.6349]
[1644258750286,55.28413069,120.33,120.24,60.6349]
[1644258750489,55.3195517,120.33,120.24,60.6349]
[1644258756412,55.3195517,120.33,120.24,48.1617]
[1644258756611,57.43095926,120.33,120.24,48.1617]
[1644258757211,1.16923503,120.32,120.24,48.1617]
[1644258757413,12.475,120.31,120.24,48.1617]
[1644258757912,12.725,120.31,120.22,43.21435957]
[1644258758114,18.725,120.31,120.22,43.21435957]
[1644258758314,19.89423503,120.31,120.22,43.21435957]
[1644258758512,18.725,120.31,120.2,50.1081]
[1644258758713,23.2628,120.3,120.2,45.9521]
[1644258758916,12.4779,120.28,120.2,45.9521]
[1644258759318,12.7279,120.28,120.2,45.9521]
[1644258759517,23.2628,120.3,120.21,31.4404861]
[1644258759714,23.5128,120.3,120.21,31.6904861]
[1644258759915,23.5128,120.3,120.21,37.6904861]
[1644258760415,35.989,120.3,120.21,37.6904861]
[1644258761316,0.25,120.3,120.22,12.4752]
[1644258761525,1.16923503,120.32,120.22,35.2551]
[1644258761716,1.20465604,120.34,120.23,18.08758307]
[1644258761921,1.20465604,120.34,120.24,22.5299]
[1644258762117,1.20465604,120.34,120.25,4.156]
[1644258762317,1.16923503,120.35,120.25,6.34658307]
[1644258762519,0.03542101,120.34,120.26,36.93442635]
[1644258762717,1.20465604,120.35,120.26,49.17442635]
[1644258762918,0.03542101,120.35,120.26,55.17442635]
[1644258763920,12.50562101,120.35,120.28,12.4686]
[1644258764227,0.28542101,120.36,120.28,12.7186]
[1644258764617,0.03542101,120.36,120.28,12.7186]
[1644258764823,43.37382787,120.37,120.28,18.7186]
[1644258765019,0.03542101,120.36,120.28,18.7186]
[1644258765219,43.37382787,120.37,120.28,18.7186]
[1644258765419,0.03542101,120.36,120.28,18.7186]
[1644258765622,55.84292787,120.37,120.28,18.7186]
[1644258766226,56.09292787,120.37,120.28,18.7186]
[1644258768023,54.92369284,120.37,120.28,18.7186]
[1644258768224,12.75452101,120.37,120.28,18.7186]
[1644258768424,0.28542101,120.37,120.28,18.7186]
[1644258768623,0.03542101,120.37,120.29,24.4637]
[1644258768926,41.9698,120.38,120.31,12.4664]
[1644258769126,0.03542101,120.37,120.31,12.4664]
[1644258769436,41.9698,120.38,120.32,31.4404861]
[1644258769623,42.00522101,120.38,120.32,31.4404861]
[1644258769824,41.9698,120.38,120.32,31.6904861]
[1644258770225,29.5025,120.38,120.32,31.6904861]
[1644258770426,1.20465604,120.39,120.32,44.1561861]
[1644258770626,0.03542101,120.39,120.32,50.1561861]
[1644258770826,25.48985604,120.4,120.32,50.1561861]
[1644258771227,1.20465604,120.4,120.32,50.1561861]
[1644258771425,1.20465604,120.4,120.32,62.1461861]
[1644258771625,0.03542101,120.4,120.32,66.3001861]
[1644258772227,0.03542101,120.4,120.33,23.1033]
[1644258772428,113.1,120.42,120.35,12.4614]
[1644258772627,0.03542101,120.41,120.36,12.46394328]
[1644258772828,113.38542101,120.42,120.36,12.71394328]
[1644258773027,113.35,120.42,120.36,12.71394328]
[1644258773627,113.35,120.42,120.36,25.17484328]
[1644258773827,113.1,120.42,120.36,25.17484328]
[1644258774229,113.1,120.42,120.36,31.17484328]
[1644258774428,113.1,120.42,120.36,42.69484328]
[1644258774630,113.1,120.42,120.36,36.69484328]
[1644258775031,113.1,120.42,120.36,42.69484328]
[1644258775928,113.1,120.42,120.36,25.17484328]
[1644258776330,46.808077,120.43,120.36,0.25]
[1644258776527,52.77265599,120.43,120.36,0.25]
[1644258776729,52.77265599,120.43,120.35,24.9158]
[1644258776933,6.28542101,120.43,120.35,24.9158]
[1644258777332,0.28542101,120.43,120.35,37.3777]
[1644258777729,0.03542101,120.43,120.35,37.3777]
[1644258778032,63.79341202,120.44,120.36,41.4786523]
[1644258778229,0.03542101,120.43,120.36,41.7286523]
[1644258778630,63.79341202,120.44,120.36,41.7286523]
[1644258778929,63.79341202,120.44,120.36,54.1895523]
[1644258779431,63.79341202,120.44,120.36,41.7286523]
[1644258779631,63.82883303,120.44,120.36,41.7286523]
[1644258779932,63.82883303,120.44,120.36,0.25]
[1644258780131,63.82883303,120.44,120.35,37.3776]
[1644258780530,65.9756616,120.44,120.35,37.3776]
[1644258780729,65.9756616,120.44,120.35,79.19432213]
[1644258781730,65.9756616,120.44,120.35,14.2450317]
[1644258781932,65.9756616,120.44,120.35,1.7832317]
[1644258781933,12.24934556,120.43,120.35,1.7832317]
[1644258782231,14.13682857,120.42,120.35,1.7832317]
[1644258782435,22.73600804,120.42,120.35,1.7832317]
[1644258782632,2.14682857,120.41,120.35,1.7832317]
[1644258782831,14.3587683,120.4,120.33,34.90963221]
[1644258783031,12.02542101,120.4,120.33,34.90963221]
[1644258783231,18.27542101,120.4,120.31,4.152]
[1644258783431,18.27542101,120.4,120.3,35.9724]
[1644258783732,0.03542101,120.39,120.3,35.9724]
[1644258783932,12.02542101,120.39,120.3,35.9724]
[1644258784147,53.29843109,120.39,120.31,41.67551077]
[1644258784332,53.54843109,120.39,120.31,41.92551077]
[1644258784734,53.51301008,120.39,120.31,41.92551077]
[1644258785332,53.51301008,120.39,120.31,41.67551077]
[1644258786033,65.98051008,120.39,120.31,41.67551077]
[1644258786234,30.7075,120.39,120.31,41.67551077]
[1644258787235,17.99,120.39,120.31,54.39141077]
[1644258787433,17.99,120.39,120.31,60.39141077]
[1644258787735,17.99,120.39,120.31,54.39141077]
[1644258789237,0.03542101,120.4,120.31,62.33185654]
[1644258789436,0.03542101,120.4,120.32,4.154]
[1644258789638,0.03542101,120.4,120.33,12.4631]
[1644258789836,0.03542101,120.4,120.33,12.7131]
[1644258790038,0.03542101,120.4,120.33,18.7131]
[1644258790238,0.03542101,120.4,120.33,20.65354577]
[1644258790437,6.03542101,120.42,120.33,20.65354577]
[1644258790636,0.03542101,120.42,120.33,20.65354577]
[1644258790835,6.03542101,120.42,120.33,20.65354577]
[1644258791041,0.03542101,120.42,120.33,20.65354577]
[1644258791236,0.03542101,120.43,120.34,11.99]
[1644258791437,0.03542101,120.43,120.34,36.7968]
[1644258791640,0.03542101,120.45,120.36,12.4582]
[1644258791837,40.6624743,120.45,120.37,2.22891861]
[1644258792038,52.6524743,120.45,120.37,2.22891861]
[1644258792237,54.07170933,120.45,120.37,2.47891861]
[1644258792438,60.07170933,120.45,120.37,2.47891861]
[1644258792638,62.2185379,120.45,120.36,12.4582]
[1644258792840,74.6796379,120.45,120.35,24.3013]
[1644258793038,0.03542101,120.44,120.35,24.3013]
[1644258793340,1.20465604,120.44,120.35,24.3013]
[1644258793540,1.20465604,120.44,120.35,84.554008]
[1644258793738,7.45465604,120.44,120.35,84.804008]
[1644258793939,31.90685604,120.44,120.35,84.804008]
[1644258796039,31.65685604,120.44,120.35,84.804008]
[1644258796640,31.65685604,120.44,120.35,97.265908]
[1644258797140,30.48762101,120.44,120.35,97.265908]
[1644258797539,31.65685604,120.44,120.35,97.265908]
[1644258797939,55.49965604,120.44,120.35,97.265908]
[1644258798341,55.74965604,120.44,120.35,97.265908]
[1644258798540,1.16923503,120.43,120.35,97.265908]
[1644258798744,0.25,120.43,120.35,97.265908]
[1644258798943,6.25,120.43,120.35,97.265908]
[1644258799243,7.41923503,120.43,120.35,97.265908]
[1644258799449,7.41923503,120.43,120.35,97.015908]
[1644258801345,7.41923503,120.43,120.35,97.265908]
[1644258801741,19.88203503,120.43,120.35,97.265908]
[1644258801942,19.88203503,120.43,120.35,60.3133]
[1644258802141,31.87203503,120.43,120.35,60.3133]
[1644258803549,31.87203503,120.43,120.35,66.3133]
[1644258803746,7.41923503,120.43,120.35,66.3133]
[1644258803944,1.16923503,120.43,120.35,66.3133]
[1644258804148,1.20465604,120.44,120.35,72.40661906]
[1644258804546,0.03542101,120.44,120.35,72.40661906]
[1644258804946,6.03542101,120.45,120.35,72.40661906]
[1644258805145,0.03542101,120.44,120.35,72.40661906]
[1644258805545,36.47385113,120.44,120.35,72.40661906]
[1644258805746,36.72385113,120.44,120.35,72.40661906]
[1644258805945,42.72385113,120.44,120.35,72.40661906]
[1644258806347,11.99,120.43,120.35,64.4653]
[1644258806546,17.99,120.43,120.35,52.0034]
[1644258806746,18.27542101,120.43,120.35,51.7534]
[1644258807045,6.28542101,120.43,120.35,51.7534]
[1644258807447,11.99,120.42,120.35,51.7534]
[1644258807649,30.48892101,120.42,120.35,47.6014]
[1644258807850,18.02542101,120.42,120.35,47.6014]
[1644258808049,6.03542101,120.42,120.35,68.00491906]
[1644258808251,6.0,120.42,120.35,68.00491906]
[1644258808451,0.03542101,120.43,120.35,62.00491906]
[1644258808655,12.49792101,120.43,120.35,47.6014]
[1644258808850,58.3705919,120.43,120.34,42.49014171]
[1644258809049,65.53982693,120.43,120.34,48.49014171]
[1644258809249,65.78982693,120.43,120.34,48.49014171]
[1644258810150,64.6205919,120.43,120.34,48.74014171]
[1644258810353,88.7372919,120.43,120.34,48.49014171]
[1644258810551,11.99,120.42,120.34,48.49014171]
[1644258810752,12.4648,120.41,120.34,48.49014171]
[1644258811156,18.7148,120.41,120.34,48.49014171]
[1644258811552,12.7148,120.41,120.34,48.49014171]
[1644258811754,12.7148,120.41,120.34,48.74014171]
[1644258812354,12.4648,120.41,120.34,48.74014171]
[1644258812553,0.25,120.41,120.34,48.74014171]
[1644258813356,0.25,120.41,120.32,24.3217]
[1644258813557,12.74992101,120.41,120.32,24.3217]
[1644258813760,24.73992101,120.41,120.32,24.3217]
[1644258813958,30.73992101,120.41,120.32,24.3217]
[1644258814358,30.73992101,120.41,120.32,67.40407567]
[1644258814957,30.73992101,120.41,120.32,67.65407567]
[1644258815158,30.73992101,120.41,120.32,67.40407567]
[1644258815359,55.51155604,120.41,120.32,67.40407567]
[1644258815759,55.51155604,120.41,120.32,24.3217]
[1644258816560,55.51155604,120.41,120.29,36.99943947]
[1644258816760,1.16923503,120.4,120.3,67.35965668]
[1644258816983,12.4676,120.38,120.3,67.35965668]
[1644258817182,12.50302101,120.38,120.3,24.5446]
[1644258817383,12.75302101,120.38,120.3,24.5446]
[1644258817584,30.74302101,120.38,120.3,0.25]
[1644258817783,23.2101,120.37,120.28,1.17913947]
[1644258817983,12.4709,120.35,120.28,6.0]
[1644258818183,12.4709,120.35,120.28,39.07516304]
[1644258818384,12.4709,120.35,120.28,45.07516304]
[1644258818586,58.78882879,120.35,120.28,45.07516304]
[1644258819085,58.78882879,120.35,120.28,45.32516304]
[1644258819686,12.4709,120.35,120.28,45.32516304]
[1644258819889,12.4696,120.36,120.28,45.32516304]
[1644258820189,12.4696,120.36,120.28,69.70886304]
[1644258820387,12.7196,120.36,120.28,69.70886304]
[1644258820988,12.7196,120.36,120.28,82.17846304]
[1644258822289,12.7196,120.36,120.28,81.92846304]
[1644258823088,12.7196,120.36,120.28,42.8533]
[1644258823992,12.7196,120.36,120.29,39.43981973]
[1644258824193,12.7196,120.36,120.29,45.43981973]
[1644258824791,12.7196,120.36,120.29,45.68981973]
[1644258825191,60.27282077,120.37,120.29,45.68981973]
[1644258825192,23.2101,120.37,120.29,45.68981973]
[1644258825391,23.2101,120.37,120.29,60.09883879]
[1644258825792,23.4601,120.37,120.29,60.09883879]
[1644258826195,23.2101,120.37,120.29,60.09883879]
[1644258826396,18.4677,120.38,120.29,60.09883879]
[1644258826806,6.0,120.38,120.3,24.1726]
[1644258827002,6.03542101,120.38,120.31,12.466]
[1644258827198,6.0,120.38,120.31,20.65727874]
[1644258828098,30.93442101,120.39,120.31,20.65727874]
[1644258828697,30.93442101,120.39,120.32,1.94127874]
[1644258828899,30.93442101,120.39,120.32,14.40617874]
[1644258829100,6.03542101,120.39,120.32,20.65617874]
[1644258829500,0.03542101,120.39,120.32,20.65617874]
[1644258829697,6.0,120.39,120.32,20.65617874]
[1644258829899,6.03542101,120.39,120.33,4.46460965]
[1644258830099,23.177,120.4,120.33,4.46460965]
[1644258830100,29.21242101,120.4,120.33,4.46460965]
[1644258830298,41.67712101,120.4,120.33,4.71460965]
[1644258830499,35.67712101,120.4,120.33,4.71460965]
[1644258831602,32.83997181,120.4,120.32,12.4649]
[1644258831803,32.83997181,120.4,120.3,28.3266]
[1644258832004,12.4684,120.37,120.3,24.1726]
[1644258832202,12.7184,120.37,120.3,24.1726]
[1644258832401,12.4684,120.37,120.3,24.1726]
[1644258832603,12.7184,120.37,120.31,41.73261026]
[1644258833312,12.4684,120.37,120.31,41.98261026]
[1644258834409,0.03542101,120.38,120.31,41.98261026]
[1644258834607,42.21014869,120.37,120.31,41.98261026]
[1644258835310,42.21014869,120.37,120.31,41.73261026]
[1644258835510,0.03542101,120.38,120.31,41.73261026]
[1644258835730,24.79922101,120.39,120.31,41.73261026]
[1644258835931,12.4667,120.38,120.31,54.19871026]
[1644258836330,12.7167,120.38,120.31,54.19871026]
[1644258836532,54.1242729,120.38,120.31,60.19871026]
[1644258836735,54.1242729,120.38,120.31,60.44871026]
[1644258837934,53.8742729,120.38,120.31,12.7161]
[1644258838131,54.1242729,120.38,120.31,0.25]
[1644258838332,54.1242729,120.38,120.3,24.4226]
[1644258838532,54.15969391,120.38,120.3,30.4226]
[1644258839032,54.15969391,120.38,120.3,66.07578606]
[1644258839432,60.15969391,120.38,120.3,24.4226]
[1644258840434,60.15969391,120.38,120.3,60.58012045]
[1644258841033,72.14969391,120.38,120.3,60.58012045]
[1644258841736,71.89969391,120.38,120.3,60.58012045]
[1644258841938,71.89969391,120.38,120.3,73.04732045]
[1644258843034,30.49212101,120.38,120.3,73.04732045]
[1644258843740,30.74212101,120.38,120.3,73.04732045]
[1644258844040,73.63890534,120.38,120.3,73.04732045]
[1644258844640,67.63890534,120.38,120.3,73.04732045]
[1644258845040,67.38890534,120.38,120.3,73.04732045]
[1644258845240,67.63890534,120.38,120.3,73.04732045]
[1644258845441,67.63890534,120.38,120.3,72.79732045]
[1644258846745,67.63890534,120.38,120.3,73.04732045]
[1644258847042,67.63890534,120.38,120.3,72.79732045]
[1644258847743,67.63890534,120.38,120.3,36.6398]
[1644258847943,67.63890534,120.38,120.3,24.1726]
[1644258848146,73.63890534,120.38,120.3,24.1726]
[1644258848542,73.63890534,120.38,120.28,0.024]
[1644258848743,24.2571,120.37,120.28,0.024]
[1644258848943,12.4726,120.35,120.28,0.024]
[1644258849143,54.7197,120.35,120.26,0.024]
[1644258849546,54.9697,120.35,120.25,0.024]
[1644258849844,64.3487,120.35,120.25,0.024]
[1644258850044,52.71425156,120.34,120.25,34.57703664]
[1644258850243,52.96425156,120.34,120.26,0.024]
[1644258850443,58.96425156,120.34,120.26,0.024]
[1644258852848,52.96425156,120.34,120.26,0.024]
[1644258853047,0.25,120.34,120.26,35.9449]
[1644258853248,30.5071,120.35,120.26,36.1949]
[1644258853648,24.2571,120.35,120.26,36.1949]
[1644258854050,24.2571,120.35,120.26,44.13609206]
[1644258854453,11.99,120.36,120.26,48.29209206]
[1644258854652,6.0,120.36,120.26,44.13609206]
[1644258855052,6.0,120.37,120.26,44.13609206]
[1644258855252,0.03542101,120.38,120.3,12.4669]
[1644258855461,36.33692101,120.39,120.31,23.1729]
[1644258855653,0.03542101,120.38,120.3,12.7169]
[1644258855851,30.59692101,120.39,120.3,0.25]
[1644258856052,55.55539207,120.38,120.3,0.25]
[1644258856251,55.76997106,120.38,120.3,0.25]
[1644258856452,61.80539207,120.38,120.3,0.25]
[1644258856852,61.80539207,120.38,120.29,34.00229274]
[1644258857055,74.27459207,120.38,120.29,34.00229274]
[1644258857451,74.27459207,120.38,120.29,24.6509]
[1644258857656,74.27459207,120.38,120.28,24.0091]
[1644258857853,24.2245,120.37,120.28,24.2591]
[1644258858052,11.99,120.36,120.28,24.2591]
[1644258858253,12.24,120.36,120.28,0.024]
[1644258858453,18.24,120.36,120.28,0.024]
[1644258860054,30.7112,120.36,120.28,0.024]
[1644258860454,30.7112,120.36,120.28,24.524]
[1644258860657,30.7112,120.36,120.28,24.774]
[1644258860857,18.7212,120.36,120.28,24.774]
[1644258861158,6.25,120.36,120.28,37.2438]
[1644258861359,6.0,120.36,120.28,37.2438]
[1644258861657,42.694,120.37,120.28,37.2438]
[1644258861957,42.694,120.37,120.29,0.024]
[1644258862758,54.684,120.37,120.29,0.024]
[1644258863361,54.934,120.37,120.29,0.024]
[1644258867764,54.934,120.37,120.28,37.2197]
[1644258867965,54.934,120.37,120.29,0.024]
[1644258868966,54.934,120.37,120.28,0.024]
[1644258869264,2.14682857,120.36,120.28,0.024]
[1644258869464,12.4749,120.34,120.27,0.024]
[1644258869665,40.54029027,120.33,120.27,0.024]
[1644258869871,65.15609027,120.33,120.25,0.024]
[1644258870065,71.15609027,120.33,120.25,0.024]
[1644258870270,71.40609027,120.33,120.25,0.024]
[1644258870465,11.99,120.32,120.25,0.024]
[1644258870677,30.4656,120.32,120.23,0.024]
[1644258870873,30.7156,120.32,120.23,0.024]
[1644258871269,30.7156,120.32,120.23,39.09230661]
[1644258871470,30.7156,120.32,120.24,0.024]
[1644258871868,30.7156,120.32,120.24,23.384]
[1644258872069,30.7156,120.32,120.24,23.634]
[1644258873571,30.7156,120.32,120.24,0.274]
[1644258873770,30.7156,120.32,120.24,0.024]
[1644258874174,12.7256,120.32,120.24,0.024]
[1644258874879,24.6158,120.33,120.24,0.024]
[1644258875080,24.6158,120.33,120.24,16.6539]
[1644258875278,24.6158,120.33,120.25,0.024]
[1644258875478,24.6158,120.33,120.26,4.156]
[1644258875677,37.41058224,120.36,120.27,4.83612277]
[1644258875880,6.0,120.33,120.28,22.6019]
[1644258876178,42.7788,120.35,120.28,0.25]
[1644258876377,42.7788,120.35,120.28,0.274]
[1644258876777,43.0288,120.35,120.28,0.274]
[1644258877702,43.0288,120.35,120.28,0.024]
[1644258877900,43.0288,120.35,120.27,5.08612277]
[1644258878302,43.0288,120.35,120.27,0.25]
[1644258878700,43.0288,120.35,120.26,0.024]
[1644258878903,43.0288,120.35,120.26,12.4959]
[1644258879100,43.0288,120.35,120.27,24.9281]
[1644258879301,43.0288,120.35,120.27,25.1781]
[1644258881007,43.0288,120.35,120.27,37.649]
[1644258881808,43.0288,120.35,120.27,25.1781]
[1644258882609,43.0288,120.35,120.27,0.25]
[1644258882810,57.16562857,120.35,120.26,0.024]
[1644258883012,62.4908636,120.35,120.25,0.024]
[1644258883611,12.4763,120.32,120.25,0.024]
[1644258883812,43.38429584,120.31,120.25,0.024]
[1644258884012,43.38429584,120.31,120.23,24.4905]
[1644258884214,49.63429584,120.31,120.23,24.4905]
[1644258884810,62.11089584,120.31,120.23,36.9656]
[1644258885211,43.63429584,120.31,120.23,37.2156]
[1644258886611,43.63429584,120.31,120.23,43.2156]
[1644258887013,43.63429584,120.31,120.23,37.2156]
[1644258887212,43.63429584,120.31,120.23,43.2156]
[1644258887511,43.38429584,120.31,120.23,37.2156]
[1644258887712,23.4215,120.33,120.23,43.2156]
[1644258887912,23.4215,120.33,120.25,12.473]
[1644258888312,23.4215,120.33,120.25,12.723]
[1644258888511,29.4215,120.33,120.25,12.723]
[1644258888712,37.06446009,120.32,120.25,17.41572224]
[1644258889312,37.31446009,120.32,120.25,17.41572224]
[1644258890913,43.31446009,120.32,120.25,17.41572224]
[1644258891315,37.31446009,120.32,120.25,17.41572224]
[1644258891517,37.06446009,120.32,120.25,17.41572224]
[1644258891917,37.06446009,120.32,120.25,17.43972224]
[1644258892618,37.06446009,120.32,120.25,17.18972224]
[1644258893227,23.4215,120.33,120.25,17.18972224]
[1644258893421,23.4215,120.33,120.25,23.18972224]
[1644258893623,1.16923503,120.37,120.25,45.13972224]
[1644258893820,24.67053503,120.37,120.26,23.3945]
[1644258894024,23.5013,120.37,120.29,12.4685]
[1644258894228,1.20580288,120.38,120.3,39.21170714]
[1644258894421,0.03656785,120.38,120.3,62.58220714]
[1644258894622,0.03656785,120.39,120.3,84.97620714]
[1644258894820,0.03656785,120.39,120.31,23.4203]
[1644258895022,0.03656785,120.4,120.32,40.6289]
[1644258895221,1.16923503,120.43,120.32,40.8789]
[1644258895421,0.03656785,120.42,120.32,46.8789]
[1644258895645,0.03656785,120.42,120.33,41.5374]
[1644258895849,0.03656785,120.42,120.34,16.68272224]
[1644258896045,41.4513161,120.43,120.34,23.15402224]
[1644258896345,0.03656785,120.42,120.34,17.40402224]
[1644258896545,41.73788395,120.43,120.34,17.40402224]
[1644258896745,0.03656785,120.42,120.34,17.40402224]
[1644258896945,40.53208107,120.43,120.34,17.40402224]
[1644258897145,0.03656785,120.42,120.34,17.40402224]
[1644258897346,40.31864892,120.43,120.34,17.40402224]
[1644258897550,40.31864892,120.43,120.34,23.40402224]
[1644258898146,40.31864892,120.43,120.34,17.40402224]
[1644258898353,40.31864892,120.43,120.34,23.40402224]
[1644258898747,40.56864892,120.43,120.34,12.7113]
[1644258898947,40.56864892,120.43,120.34,0.25]
[1644258899147,40.56864892,120.43,120.32,46.8769]
[1644258899349,0.03656785,120.42,120.32,46.8769]
[1644258899748,0.03656785,120.42,120.33,43.59331861]
[1644258899949,0.03656785,120.42,120.33,56.05751861]
[1644258900147,0.03656785,120.42,120.33,56.30751861]
[1644258900549,0.03656785,120.42,120.33,62.30751861]
[1644258908455,0.03656785,120.42,120.33,56.30751861]
[1644258910457,12.50146785,120.42,120.33,56.30751861]
[1644258910660,18.75146785,120.42,120.33,43.84331861]
[1644258910857,18.75146785,120.42,120.32,24.4849]
[1644258911059,0.03656785,120.41,120.31,23.4203]
[1644258911259,16.18056785,120.41,120.29,0.024]
[1644258911461,37.08549642,120.41,120.28,0.024]
[1644258911661,47.23949642,120.41,120.28,0.024]
[1644258911860,47.23949642,120.41,120.28,32.73235836]
[1644258911861,47.48949642,120.41,120.28,32.73235836]
[1644258912060,47.48949642,120.41,120.29,0.024]
[1644258912259,12.4686,120.39,120.29,0.024]
[1644258912461,56.18506679,120.39,120.29,0.024]
[1644258912660,62.18506679,120.39,120.29,0.024]
[1644258913759,62.18506679,120.39,120.29,24.6261]
[1644258913960,62.18506679,120.39,120.29,37.3445]
[1644258914361,56.43506679,120.39,120.29,37.3445]
[1644258914562,0.03656785,120.39,120.29,43.3445]
[1644258914763,47.369,120.41,120.29,45.28569206]
[1644258914764,0.03656785,120.4,120.29,45.28569206]
[1644258915364,0.03656785,120.4,120.29,43.3445]
[1644258915562,38.02845128,120.4,120.29,43.3445]
[1644258915762,0.03656785,120.39,120.29,43.3445]
[1644258915964,0.03656785,120.39,120.29,47.4985]
[1644258916969,0.03656785,120.39,120.29,43.3445]
[1644258918668,0.03656785,120.39,120.29,45.28569206]
[1644258918868,0.03656785,120.39,120.29,43.3445]
[1644258919670,0.03656785,120.39,120.29,45.28569206]
[1644258919970,36.66726785,120.39,120.29,43.3445]
[1644258920171,42.66726785,120.39,120.29,43.3445]
[1644258920472,42.91726785,120.39,120.29,43.3445]
[1644258920875,30.44936785,120.39,120.29,43.3445]